[Event "XXII Obert Internacional d'Escacs Sant Marti 2022"]
[Site "Barcelona, Spain"]
[Date "2022.07.20"]
[Round "8.7"]
[White "Tanaka, Taira Tyler"]
[Black "D`costa, Lorin"]
[Result "0-1"]
[TimeControl "1.30 fb 30"]
[WhiteElo "2242"]
[BlackElo "2372"]

1. e4 {[%clk 01:30:56]} {[%emt 00:00:03]} c6 {[%clk 01:26:40]} {[%emt
00:04:20]} 2. Nf3 {[%clk 01:31:05]} {[%emt 00:00:21]} d5 {[%clk 01:26:56]}
{[%emt 00:00:13]} 3. d3 {[%clk 01:31:30]} {[%emt 00:00:07]} g6 {[%clk
01:24:38]} {[%emt 00:02:47]} 4. Qe2 {[%clk 01:31:24]} {[%emt 00:00:35]} Bg7
{[%clk 01:23:58]} {[%emt 00:01:10]} 5. g3 {[%clk 01:31:41]} {[%emt 00:00:14]}
e6 {[%clk 00:55:45]} {[%emt 00:28:43]} 6. Bg2 {[%clk 01:31:29]} {[%emt
00:00:42]} Ne7 {[%clk 00:56:08]} {[%emt 00:00:07]} 7. O-O {[%clk 01:30:30]}
{[%emt 00:01:29]} c5 {[%clk 00:53:02]} {[%emt 00:03:37]} 8. Re1 {[%clk
01:11:47]} {[%emt 00:19:13]} Nbc6 {[%clk 00:51:37]} {[%emt 00:01:54]} 9. Nbd2
{[%clk 01:08:41]} {[%emt 00:03:37]} b6 {[%clk 00:43:42]} {[%emt 00:08:25]} 10.
e5 {[%clk 00:56:04]} {[%emt 00:13:07]} h6 {[%clk 00:36:51]} {[%emt 00:07:21]}
11. h4 {[%clk 00:46:08]} {[%emt 00:10:26]} Nf5 {[%clk 00:12:51]} {[%emt
00:24:30]} 12. Nf1 {[%clk 00:31:23]} {[%emt 00:15:15]} Ba6 {[%clk 00:12:03]}
{[%emt 00:01:18]} 13. c3 {[%clk 00:24:46]} {[%emt 00:07:07]} Qc7 {[%clk
00:11:38]} {[%emt 00:00:54]} 14. Bf4 {[%clk 00:22:54]} {[%emt 00:02:22]} O-O-O
{[%clk 00:11:03]} {[%emt 00:01:06]} 15. Qd2 {[%clk 00:13:06]} {[%emt 00:10:18]}
Kb8 {[%clk 00:10:49]} {[%emt 00:00:44]} 16. b4 {[%clk 00:10:32]} {[%emt
00:03:04]} Bf8 {[%clk 00:06:36]} {[%emt 00:04:42]} 17. Rab1 {[%clk 00:08:13]}
{[%emt 00:02:50]} Bb7 {[%clk 00:05:33]} {[%emt 00:01:33]} 18. a3 {[%clk
00:04:48]} {[%emt 00:03:55]} Ka8 {[%clk 00:05:38]} {[%emt 00:00:25]} 19. Ne3
{[%clk 00:03:56]} {[%emt 00:01:21]} Nxe3 {[%clk 00:03:15]} {[%emt 00:02:54]} 20.
Bxe3 {[%clk 00:03:56]} {[%emt 00:00:30]} Rc8 {[%clk 00:01:21]} {[%emt
00:02:25]} 21. Rb2 {[%clk 00:03:39]} {[%emt 00:00:47]} d4 {[%clk 00:00:41]}
{[%emt 00:01:09]} 22. cxd4 {[%clk 00:01:52]} {[%emt 00:02:16]} cxd4 {[%clk
00:01:07]} {[%emt 00:00:04]} 23. Nxd4 {[%clk 00:01:47]} {[%emt 00:00:35]} Nxd4
{[%clk 00:00:57]} {[%emt 00:00:40]} 24. Bxb7+ {[%clk 00:01:53]} {[%emt
00:00:24]} Qxb7 {[%clk 00:01:21]} {[%emt 00:00:07]} 25. Bxd4 {[%clk 00:02:22]}
{[%emt 00:00:01]} g5 {[%clk 00:01:20]} {[%emt 00:00:31]} 26. h5 {[%clk
00:02:03]} {[%emt 00:00:48]} Be7 {[%clk 00:00:54]} {[%emt 00:00:56]} 27. Rc1
{[%clk 00:01:39]} {[%emt 00:00:54]} Rcd8 {[%clk 00:00:43]} {[%emt 00:00:41]} 28.
Be3 {[%clk 00:01:04]} {[%emt 00:01:05]} Rd7 {[%clk 00:00:40]} {[%emt 00:00:34]}
29. Rbc2 {[%clk 00:01:14]} {[%emt 00:00:20]} Rhd8 {[%clk 00:00:46]} {[%emt
00:00:23]} 30. d4 {[%clk 00:01:19]} {[%emt 00:00:26]} f5 {[%clk 00:01:03]}
{[%emt 00:00:13]} 31. Rc6 {[%clk 00:01:16]} {[%emt 00:00:32]} f4 {[%clk
00:01:02]} {[%emt 00:00:32]} 32. gxf4 {[%clk 00:01:38]} {[%emt 00:00:08]} gxf4
{[%clk 00:01:27]} {[%emt 00:00:05]} 33. Bxf4 {[%clk 00:02:00]} {[%emt
00:00:09]} Bc5 {[%clk 00:01:13]} {[%emt 00:00:44]} 34. Rd6 {[%clk 00:00:43]}
{[%emt 00:01:46]} Rg8+ {[%clk 00:00:54]} {[%emt 00:00:49]} 35. Kf1 {[%clk
00:00:37]} {[%emt 00:00:36]} Bxd6 {[%clk 00:01:06]} {[%emt 00:00:18]} 36. exd6
{[%clk 00:01:03]} {[%emt 00:00:04]} Qa6+ {[%clk 00:01:00]} {[%emt 00:00:35]} 37.
Qe2 {[%clk 00:00:35]} {[%emt 00:00:59]} Rg1+ {[%clk 00:01:07]} {[%emt
00:00:23]} 38. Kxg1 {[%clk 00:00:57]} {[%emt 00:00:08]} Qxe2 {[%clk 00:01:34]}
{[%emt 00:00:03]} 0-1

[Event "XXII Obert Internacional d'Escacs Sant Marti 2022"]
[Site "Barcelona, Spain"]
[Date "2022.07.20"]
[Round "8.9"]
[White "Sole Pijuan, Ferran"]
[Black "Noboa Silva, Kevin"]
[Result "0-1"]
[TimeControl "1.30 fb 30"]
[WhiteElo "2184"]
[BlackElo "2304"]

1. d4 {[%clk 01:30:51]} {[%emt 00:00:08]} e6 {[%clk 01:30:10]} {[%emt
00:00:50]} 2. c4 {[%clk 01:30:50]} {[%emt 00:00:30]} Bb4+ {[%clk 01:30:22]}
{[%emt 00:00:18]} 3. Bd2 {[%clk 01:30:04]} {[%emt 00:01:16]} a5 {[%clk
01:30:36]} {[%emt 00:00:17]} 4. a3 {[%clk 01:26:00]} {[%emt 00:04:34]} Bxd2+
{[%clk 01:30:40]} {[%emt 00:00:26]} 5. Qxd2 {[%clk 01:26:25]} {[%emt 00:00:04]}
d6 {[%clk 01:28:40]} {[%emt 00:02:02]} 6. Nf3 {[%clk 01:18:22]} {[%emt
00:08:32]} Nf6 {[%clk 01:27:01]} {[%emt 00:02:39]} 7. Nc3 {[%clk 01:18:45]}
{[%emt 00:00:07]} O-O {[%clk 01:26:35]} {[%emt 00:00:56]} 8. g3 {[%clk
01:15:34]} {[%emt 00:03:41]} Nc6 {[%clk 01:25:24]} {[%emt 00:01:40]} 9. d5
{[%clk 01:07:18]} {[%emt 00:08:47]} Nb8 {[%clk 01:23:58]} {[%emt 00:01:56]} 10.
Bg2 {[%clk 01:06:48]} {[%emt 00:01:00]} e5 {[%clk 01:23:51]} {[%emt 00:00:37]}
11. O-O {[%clk 01:05:53]} {[%emt 00:01:23]} a4 {[%emt 00:04:36]} 12. Qc2 {[%clk
01:03:38]} {[%emt 00:02:39]} Bd7 {[%clk 01:19:32]} {[%emt 00:00:51]} 13. e4
{[%clk 00:57:22]} {[%emt 00:06:46]} Na6 {[%clk 01:16:53]} {[%emt 00:03:09]} 14.
Ne1 {[%clk 00:53:12]} {[%emt 00:04:39]} Nc5 {[%clk 01:16:27]} {[%emt 00:00:57]}
15. Nd3 {[%clk 00:51:03]} {[%emt 00:02:39]} Nb3 {[%clk 01:13:08]} {[%emt
00:03:49]} 16. Rae1 {[%clk 00:49:25]} {[%emt 00:02:07]} c6 {[%clk 01:12:06]}
{[%emt 00:01:33]} 17. dxc6 {[%clk 00:39:14]} {[%emt 00:10:41]} Bxc6 {[%clk
01:11:48]} {[%emt 00:00:47]} 18. c5 {[%clk 00:31:23]} {[%emt 00:08:22]} Nxc5
{[%clk 01:05:45]} {[%emt 00:06:33]} 19. Nxc5 {[%clk 00:29:50]} {[%emt
00:02:03]} dxc5 {[%clk 01:06:06]} {[%emt 00:00:09]} 20. Rd1 {[%clk 00:30:05]}
{[%emt 00:00:15]} Qc7 {[%clk 00:59:36]} {[%emt 00:07:01]} 21. Nd5 {[%clk
00:29:44]} {[%emt 00:00:50]} Bxd5 {[%clk 00:59:18]} {[%emt 00:00:49]} 22. exd5
{[%clk 00:30:08]} {[%emt 00:00:04]} Qd6 {[%emt 00:04:17]} 23. Rfe1 {[%clk
00:27:18]} {[%emt 00:02:26]} Nd7 {[%clk 00:34:58]} {[%emt 00:21:58]} 24. Rc1
{[%clk 00:20:22]} {[%emt 00:07:26]} f5 {[%clk 00:34:07]} {[%emt 00:01:20]} 25.
Bh3 {[%clk 00:17:02]} {[%emt 00:03:51]} e4 {[%clk 00:31:20]} {[%emt 00:03:17]}
26. f3 {[%clk 00:15:07]} {[%emt 00:02:25]} Ne5 {[%clk 00:29:23]} {[%emt
00:02:27]} 27. fxe4 {[%clk 00:15:32]} {[%emt 00:00:06]} Nf3+ {[%clk 00:28:48]}
{[%emt 00:01:05]} 28. Kg2 {[%clk 00:14:40]} {[%emt 00:01:22]} Nxe1+ {[%clk
00:28:27]} {[%emt 00:00:51]} 29. Rxe1 {[%clk 00:15:06]} {[%emt 00:00:04]} Qe5
{[%emt 00:11:54]} 30. Re2 {[%clk 00:11:07]} {[%emt 00:00:46]} Rae8 {[%clk
00:17:12]} {[%emt 00:04:04]} 31. Qxa4 {[%clk 00:11:19]} {[%emt 00:00:18]} f4
{[%clk 00:16:37]} {[%emt 00:01:04]} 32. Rd2 {[%clk 00:08:11]} {[%emt 00:03:39]}
fxg3 {[%clk 00:14:54]} {[%emt 00:02:13]} 33. hxg3 {[%emt 00:02:37]} Qxe4+
{[%clk 00:13:28]} {[%emt 00:01:31]} 34. Qxe4 {[%clk 00:06:53]} {[%emt
00:00:06]} Rxe4 {[%clk 00:13:57]} 35. Be6+ {[%clk 00:06:41]} {[%emt 00:00:42]}
Kh8 {[%clk 00:14:26]} 36. b4 {[%clk 00:05:32]} {[%emt 00:01:39]} cxb4 {[%clk
00:09:47]} {[%emt 00:05:09]} 37. axb4 {[%clk 00:05:59]} {[%emt 00:00:05]} Rxb4
{[%clk 00:09:38]} {[%emt 00:00:38]} 38. d6 {[%clk 00:05:04]} {[%emt 00:01:25]}
Rb6 {[%clk 00:04:00]} {[%emt 00:06:08]} 39. d7 {[%clk 00:05:29]} {[%emt
00:00:04]} Rd8 {[%clk 00:04:22]} {[%emt 00:00:08]} 40. Rc2 {[%clk 00:05:14]}
{[%emt 00:00:45]} Rc6 {[%clk 00:04:19]} {[%emt 00:00:33]} 41. Rxc6 {[%clk
00:05:40]} {[%emt 00:00:05]} bxc6 {[%clk 00:04:45]} {[%emt 00:00:03]} 42. Kf3
{[%clk 00:06:07]} {[%emt 00:00:03]} g6 {[%clk 00:03:49]} {[%emt 00:01:26]} 43.
Ke4 {[%clk 00:06:35]} {[%emt 00:00:02]} Kg7 {[%clk 00:04:15]} {[%emt 00:00:05]}
44. Ke5 {[%clk 00:07:00]} {[%emt 00:00:05]} c5 {[%clk 00:04:22]} {[%emt
00:00:22]} 45. Kd6 {[%clk 00:06:38]} {[%emt 00:00:51]} Kf6 {[%clk 00:04:36]}
{[%emt 00:00:17]} 46. Bc4 {[%clk 00:04:08]} {[%emt 00:03:00]} h5 {[%clk
00:04:24]} {[%emt 00:00:41]} 47. Bb5 {[%clk 00:03:34]} {[%emt 00:01:05]} g5
{[%clk 00:04:08]} {[%emt 00:00:46]} 48. Kxc5 {[%clk 00:03:46]} {[%emt
00:00:18]} Ke7 {[%clk 00:04:27]} {[%emt 00:00:10]} 49. Kd5 {[%clk 00:02:51]}
{[%emt 00:01:26]} Rf8 {[%clk 00:03:34]} {[%emt 00:01:23]} 50. Kc6 {[%clk
00:00:55]} {[%emt 00:02:26]} Kd8 {[%clk 00:03:39]} {[%emt 00:00:25]} 51. Kd6
{[%clk 00:01:09]} {[%emt 00:00:17]} Rf3 {[%clk 00:03:35]} {[%emt 00:00:33]} 52.
Be2 {[%clk 00:01:18]} {[%emt 00:00:22]} g4 {[%clk 00:03:45]} {[%emt 00:00:20]}
0-1

[Event "XXII Obert Internacional d'Escacs Sant Marti 2022"]
[Site "Barcelona, Spain"]
[Date "2022.07.20"]
[Round "8.10"]
[White "Millaret Lores, Francesc"]
[Black "Perpinya Rofes, Lluis Maria"]
[Result "0-1"]
[TimeControl "1.30 fb 30"]
[WhiteElo "2106"]
[BlackElo "2297"]

1. e4 {[%clk 01:30:57]} {[%emt 00:00:01]} c5 {[%clk 01:28:21]} {[%emt
00:02:39]} 2. Nf3 {[%clk 01:31:20]} {[%emt 00:00:08]} Nc6 {[%clk 01:28:40]}
{[%emt 00:00:11]} 3. d4 {[%clk 01:30:55]} {[%emt 00:00:55]} cxd4 {[%clk
01:28:52]} {[%emt 00:00:17]} 4. Nxd4 {[%clk 01:31:19]} {[%emt 00:00:07]} Nf6
{[%clk 01:29:12]} {[%emt 00:00:10]} 5. Nc3 {[%clk 01:31:21]} {[%emt 00:00:28]}
e6 {[%clk 01:29:07]} {[%emt 00:00:35]} 6. Bg5 {[%clk 01:26:36]} {[%emt
00:05:15]} Qa5 {[%clk 01:17:24]} {[%emt 00:12:13]} 7. Bxf6 {[%clk 01:25:00]}
{[%emt 00:02:06]} gxf6 {[%clk 01:17:50]} {[%emt 00:00:04]} 8. Nb3 {[%emt
00:05:06]} Qe5 {[%emt 00:06:29]} 9. Qf3 {[%clk 01:16:40]} {[%emt 00:02:31]} Bb4
{[%clk 01:11:14]} {[%emt 00:02:50]} 10. O-O-O {[%clk 01:16:17]} {[%emt
00:00:53]} Bxc3 {[%clk 01:10:21]} {[%emt 00:01:23]} 11. Qxc3 {[%clk 01:11:32]}
{[%emt 00:05:14]} Qxc3 {[%clk 01:10:14]} {[%emt 00:00:37]} 12. bxc3 {[%clk
01:12:00]} {[%emt 00:00:03]} b6 {[%clk 01:03:26]} {[%emt 00:07:18]} 13. Nd4
{[%clk 00:58:24]} {[%emt 00:14:06]} Na5 {[%clk 00:55:50]} {[%emt 00:08:06]} 14.
Nb5 {[%clk 00:56:25]} {[%emt 00:02:29]} Ke7 {[%clk 00:55:59]} {[%emt 00:00:20]}
15. Nd6 {[%clk 00:56:11]} {[%emt 00:00:45]} Bb7 {[%clk 00:44:53]} {[%emt
00:11:36]} 16. h4 {[%clk 00:47:53]} {[%emt 00:08:48]} Bc6 {[%clk 00:42:21]}
{[%emt 00:03:02]} 17. Ba6 {[%clk 00:42:25]} {[%emt 00:05:57]} Rhg8 {[%clk
00:38:47]} {[%emt 00:04:05]} 18. Rhg1 {[%clk 00:35:22]} {[%emt 00:07:34]} Rg4
{[%clk 00:33:28]} {[%emt 00:05:47]} 19. f3 {[%clk 00:31:20]} {[%emt 00:04:32]}
Rxh4 {[%emt 00:09:41]} 20. Rd2 {[%clk 00:19:49]} {[%emt 00:08:04]} Rg8 {[%clk
00:25:12]} {[%emt 00:03:32]} 21. Nc8+ {[%clk 00:17:24]} {[%emt 00:02:55]} Kd8
{[%clk 00:22:37]} {[%emt 00:03:05]} 22. Nxa7 {[%clk 00:17:01]} {[%emt
00:00:53]} Kc7 {[%clk 00:16:43]} {[%emt 00:06:25]} 23. Rgd1 {[%clk 00:16:34]}
{[%emt 00:00:56]} Rd8 {[%clk 00:12:32]} {[%emt 00:04:42]} 24. Nxc6 {[%clk
00:14:41]} {[%emt 00:02:22]} Nxc6 {[%clk 00:10:11]} {[%emt 00:02:51]} 25. Rd6
{[%clk 00:14:45]} {[%emt 00:00:25]} Rh5 {[%emt 00:01:53]} 26. a4 {[%clk
00:14:22]} {[%emt 00:00:51]} Rc5 {[%clk 00:07:13]} {[%emt 00:02:07]} 27. c4
{[%clk 00:12:16]} {[%emt 00:02:36]} Nb4 {[%clk 00:04:51]} {[%emt 00:02:52]} 28.
Bb5 {[%clk 00:12:31]} {[%emt 00:00:15]} Nd5 {[%clk 00:03:44]} {[%emt 00:01:38]}
29. Rxd7+ {[%clk 00:11:28]} {[%emt 00:01:33]} Rxd7 {[%clk 00:04:08]} {[%emt
00:00:06]} 30. Bxd7 {[%clk 00:11:51]} {[%emt 00:00:06]} Ne3 {[%clk 00:04:03]}
{[%emt 00:00:35]} 31. Rd3 {[%clk 00:11:40]} {[%emt 00:00:41]} Nxc4 {[%clk
00:03:01]} {[%emt 00:01:33]} 32. Bb5 {[%clk 00:11:33]} {[%emt 00:00:37]} Nd6
{[%clk 00:03:04]} {[%emt 00:00:27]} 33. Ra3 {[%clk 00:06:38]} {[%emt 00:05:25]}
Nxb5 {[%clk 00:01:37]} {[%emt 00:01:57]} 34. axb5 {[%clk 00:07:05]} {[%emt
00:00:02]} Kb7 {[%clk 00:00:47]} {[%emt 00:01:20]} 35. Rd3 {[%clk 00:07:09]}
{[%emt 00:00:26]} Kc8 {[%clk 00:01:00]} {[%emt 00:00:17]} 36. Rb3 {[%emt
00:00:55]} h5 {[%clk 00:01:19]} {[%emt 00:00:10]} 37. Kd2 {[%clk 00:06:48]}
{[%emt 00:00:28]} Rg5 {[%clk 00:01:32]} {[%emt 00:00:17]} 38. Rc3+ {[%clk
00:05:13]} {[%emt 00:02:05]} Kd7 {[%clk 00:01:31]} {[%emt 00:00:31]} 39. Rd3+
{[%clk 00:05:09]} {[%emt 00:00:33]} Ke7 {[%clk 00:01:35]} {[%emt 00:00:26]} 40.
Rc3 {[%clk 00:03:47]} {[%emt 00:01:53]} Rxg2+ {[%clk 00:01:20]} {[%emt
00:00:45]} 41. Ke1 {[%clk 00:04:16]} {[%emt 00:00:01]} h4 {[%clk 00:01:15]}
{[%emt 00:00:35]} 42. Kf1 {[%clk 00:04:43]} {[%emt 00:00:03]} Rg5 {[%clk
00:01:34]} {[%emt 00:00:11]} 43. Rc8 {[%clk 00:03:19]} {[%emt 00:01:54]} Rxb5
{[%clk 00:01:21]} {[%emt 00:00:43]} 44. Kg2 {[%clk 00:03:39]} {[%emt 00:00:09]}
Rc5 {[%clk 00:01:34]} {[%emt 00:00:17]} 45. Rxc5 {[%clk 00:03:25]} {[%emt
00:00:44]} bxc5 {[%clk 00:01:56]} {[%emt 00:00:08]} 46. Kh3 {[%clk 00:01:37]}
{[%emt 00:02:18]} Kd6 {[%clk 00:02:01]} {[%emt 00:00:25]} 47. f4 {[%clk
00:01:33]} {[%emt 00:00:34]} c4 {[%clk 00:02:05]} {[%emt 00:00:27]} 48. c3
{[%clk 00:01:18]} {[%emt 00:00:45]} Kc5 {[%clk 00:01:53]} {[%emt 00:00:42]} 49.
Kxh4 {[%clk 00:00:54]} {[%emt 00:00:53]} Kb5 {[%clk 00:02:20]} {[%emt
00:00:04]} 50. e5 {[%clk 00:01:02]} {[%emt 00:00:23]} fxe5 {[%clk 00:01:47]}
{[%emt 00:01:02]} 51. fxe5 {[%clk 00:01:30]} {[%emt 00:00:02]} Ka4 {[%clk
00:02:11]} {[%emt 00:00:06]} 52. Kg5 {[%clk 00:01:51]} {[%emt 00:00:09]} Kb3
{[%clk 00:02:38]} {[%emt 00:00:03]} 53. Kf6 {[%clk 00:02:09]} {[%emt 00:00:11]}
Kxc3 {[%clk 00:03:02]} {[%emt 00:00:06]} 54. Kxf7 {[%clk 00:02:33]} {[%emt
00:00:06]} Kd4 {[%clk 00:03:30]} {[%emt 00:00:02]} 55. Kxe6 {[%clk 00:02:49]}
{[%emt 00:00:14]} c3 {[%clk 00:03:55]} {[%emt 00:00:04]} 56. Kf6 {[%clk
00:03:05]} {[%emt 00:00:14]} c2 {[%clk 00:04:21]} {[%emt 00:00:05]} 57. e6
{[%clk 00:03:28]} {[%emt 00:00:08]} c1=Q {[%clk 00:04:34]} {[%emt 00:00:17]} 58.
e7 {[%clk 00:03:47]} {[%emt 00:00:11]} Qf4+ {[%clk 00:04:36]} {[%emt 00:00:28]}
59. Kg7 {[%clk 00:04:14]} {[%emt 00:00:02]} Qg5+ {[%clk 00:04:42]} {[%emt
00:00:24]} 60. Kf7 {[%clk 00:04:25]} {[%emt 00:00:19]} Qf5+ {[%clk 00:05:02]}
{[%emt 00:00:10]} 61. Ke8 {[%clk 00:03:51]} {[%emt 00:01:04]} Kd5 {[%clk
00:05:18]} {[%emt 00:00:14]} 62. Kd8 {[%clk 00:04:14]} {[%emt 00:00:07]} Qf6
{[%clk 00:05:38]} {[%emt 00:00:10]} 63. Kd7 {[%clk 00:04:30]} {[%emt 00:00:15]}
Qd6+ {[%clk 00:05:49]} {[%emt 00:00:18]} 64. Ke8 {[%clk 00:04:48]} {[%emt
00:00:12]} Ke6 {[%clk 00:06:13]} {[%emt 00:00:06]} 0-1